bitfinex-derivatives/quotes_BTCF0:USTF0_20210707
["timestamp","ask_amount","ask_price","bid_price","bid_amount"]
[1625642650219,9.31957576,34767.0,34766.0,0.098]
[1625642651242,9.31957576,34767.0,34766.0,0.0945]
[1625642651363,9.31957576,34767.0,34762.0,0.001]
[1625642651663,7.93211135,34763.0,34762.0,0.001]
[1625642651963,8.17268679,34763.0,34762.0,0.001]
[1625642652144,8.18517244,34763.0,34762.0,0.001]
[1625642652443,8.21916957,34763.0,34762.0,0.001]
[1625642652864,8.30516957,34763.0,34762.0,0.001]
[1625642652985,8.80516957,34763.0,34756.0,0.08483541]
[1625642653164,8.80516957,34763.0,34755.0,0.50901245]
[1625642653165,6.23564244,34757.0,34754.0,0.24460516]
[1625642653284,6.55450244,34757.0,34754.0,0.24460516]
[1625642653405,6.23201286,34755.0,34752.0,0.17261575]
[1625642653651,6.23037863,34753.0,34752.0,0.003]
[1625642653889,6.23037863,34753.0,34750.0,0.33924196]
[1625642654009,6.95210495,34753.0,34750.0,0.33924196]
[1625642654131,6.22983227,34751.0,34750.0,0.33924196]
[1625642654312,6.22983227,34751.0,34750.0,0.32504196]
[1625642654432,6.24231976,34751.0,34750.0,0.32504196]
[1625642654670,6.24231976,34751.0,34749.0,0.50886293]
[1625642654975,6.2410674,34750.0,34748.0,1.18743556]
[1625642655092,6.5786174,34750.0,34748.0,1.18743556]
[1625642655213,6.23515151,34749.0,34747.0,0.50845865]
[1625642655395,4.70896039,34748.0,34747.0,0.50845865]
[1625642655934,5.19011127,34748.0,34747.0,0.50845865]
[1625642657439,5.19011127,34748.0,34747.0,0.003]
[1625642658460,5.19011127,34748.0,34747.0,0.06]
[1625642658761,5.19011127,34748.0,34747.0,0.56810831]
[1625642659002,5.19011127,34748.0,34747.0,0.06]
[1625642660266,5.19011127,34748.0,34747.0,0.56788248]
[1625642660506,5.19011127,34748.0,34747.0,0.06]
[1625642661167,3.84476608,34748.0,34747.0,0.003]
[1625642661409,5.18765211,34748.0,34747.0,0.003]
[1625642663330,5.18765211,34748.0,34745.0,0.057]
[1625642663448,5.18765211,34748.0,34747.0,0.003]
[1625642663872,9.20475211,34748.0,34747.0,0.003]
[1625642666339,9.20475211,34748.0,34744.0,0.057]
[1625642666517,3.35425858,34745.0,34744.0,0.057]
[1625642666997,2.18033515,34745.0,34744.0,0.057]
[1625642667178,2.18033515,34745.0,34742.0,1.24195351]
[1625642667298,2.18033515,34745.0,34742.0,0.56529589]
[1625642667477,1.17366598,34743.0,34742.0,0.56529589]
[1625642667597,1.43790598,34743.0,34742.0,0.56529589]
[1625642667779,6.00620598,34743.0,34742.0,0.56529589]
[1625642668078,6.24678142,34743.0,34742.0,0.56529589]
[1625642669342,7.25212043,34743.0,34742.0,0.058]
[1625642669519,6.24678142,34743.0,34742.0,0.058]
[1625642669759,7.25212842,34743.0,34742.0,0.058]
[1625642669879,7.25212842,34743.0,34742.0,0.001]
[1625642670242,8.42435067,34743.0,34742.0,0.001]
[1625642670782,9.76315003,34743.0,34742.0,0.001]
[1625642670902,9.7756114,34743.0,34742.0,0.001]
[1625642671511,9.76315003,34743.0,34742.0,0.001]
[1625642672712,8.42435067,34743.0,34742.0,0.001]
[1625642673616,9.76164359,34743.0,34742.0,0.001]
[1625642674096,9.77410509,34743.0,34742.0,0.001]
[1625642675240,9.77410509,34743.0,34737.0,0.939]
[1625642675543,1.16927824,34738.0,34737.0,0.939]
[1625642676083,1.65042912,34738.0,34737.0,0.939]
[1625642677645,2.73813868,34738.0,34737.0,0.939]
[1625642677824,7.64523868,34738.0,34737.0,0.939]
[1625642679024,7.64523868,34738.0,34737.0,0.8287]
[1625642679145,7.64523868,34738.0,34737.0,0.5842]
[1625642679326,11.65481723,34738.0,34737.0,0.5602]
[1625642679445,11.65481723,34738.0,34737.0,0.001]
[1625642680105,10.15592039,34738.0,34737.0,0.001]
[1625642682028,10.15592039,34738.0,34732.0,0.002]
[1625642682150,0.48115088,34728.0,34727.0,0.003]
[1625642682271,0.82770088,34728.0,34727.0,0.003]
[1625642682512,1.99222135,34728.0,34727.0,0.003]
[1625642682690,1.32680484,34728.0,34727.0,0.003]
[1625642682991,0.82770088,34728.0,34727.0,0.003]
[1625642683352,0.91400088,34728.0,34727.0,0.003]
[1625642683832,1.41282347,34728.0,34727.0,0.003]
[1625642684072,2.07772919,34728.0,34727.0,0.003]
[1625642684551,5.59682919,34728.0,34727.0,0.003]
[1625642685033,4.43310088,34728.0,34727.0,0.003]
[1625642686174,4.93154071,34728.0,34727.0,0.003]
[1625642686475,4.43310088,34728.0,34727.0,0.003]
[1625642686598,4.43310088,34728.0,34720.0,0.25]
[1625642686714,7.75086634,34728.0,34720.0,0.25]
[1625642686835,8.26334092,34728.0,34720.0,0.25]
[1625642686956,0.49741238,34721.0,34720.0,0.25]
[1625642687135,0.76761238,34721.0,34720.0,0.25]
[1625642687256,0.2702,34721.0,34720.0,0.25]
[1625642688156,0.83825088,34721.0,34720.0,0.25]
[1625642688575,1.33510514,34721.0,34720.0,0.25]
[1625642688998,0.75135088,34721.0,34720.0,0.25]
[1625642692240,1.48789046,34721.0,34720.0,0.25]
[1625642692481,2.14884971,34721.0,34720.0,0.25]
[1625642692602,3.14014043,34721.0,34720.0,0.25]
[1625642693079,2.14884971,34721.0,34720.0,0.25]
[1625642695002,1.48789046,34721.0,34720.0,0.25]
[1625642695722,2.14802126,34721.0,34720.0,0.25]
[1625642695963,1.48789046,34721.0,34720.0,0.25]
[1625642696384,2.14802747,34721.0,34720.0,0.2387]
[1625642696626,1.48789046,34721.0,34720.0,0.2387]
[1625642697105,0.99192632,34721.0,34720.0,0.2387]
[1625642697647,2.14675704,34721.0,34720.0,0.2387]
[1625642698067,1.48687733,34721.0,34720.0,0.1618]
[1625642698306,2.14666269,34721.0,34720.0,0.1618]
[1625642698608,3.13569547,34721.0,34720.0,0.1618]
[1625642699207,3.13569547,34721.0,34720.0,0.0907]
[1625642700655,3.13569547,34721.0,34720.0,0.0197]
[1625642701136,4.28768415,34721.0,34720.0,0.0197]
[1625642701376,3.13569547,34721.0,34720.0,0.0134]
[1625642703001,2.14666269,34721.0,34720.0,0.0134]
[1625642703120,1.87646269,34721.0,34720.0,0.0134]
[1625642703542,1.21667733,34721.0,34720.0,0.0134]
[1625642703660,1.21667733,34721.0,34720.0,0.28908]
[1625642703781,0.72172632,34721.0,34720.0,0.28908]
[1625642704021,0.72172632,34721.0,34720.0,0.34608]
[1625642704320,0.72172632,34721.0,34720.0,0.28908]
[1625642704922,0.72172632,34721.0,34720.0,0.34608]
[1625642706368,0.72172632,34721.0,34720.0,0.58665544]
[1625642706795,2.632e-05,34722.0,34720.0,0.58665544]
[1625642708288,2.632e-05,34722.0,34721.0,0.29757544]
[1625642710279,2.632e-05,34722.0,34721.0,0.30240213]
[1625642712199,2.632e-05,34722.0,34721.0,0.29757544]
[1625642716232,0.49604231,34722.0,34721.0,0.29757544]
[1625642716472,1.15725175,34722.0,34721.0,0.29757544]
[1625642716715,0.49604231,34722.0,34721.0,0.29757544]
[1625642716833,0.49604231,34722.0,34721.0,0.24057544]
[1625642716956,1.15722391,34722.0,34721.0,0.24057544]
[1625642717856,2.14901885,34722.0,34721.0,0.24057544]
[1625642718095,2.23561885,34722.0,34721.0,0.24057544]
[1625642718337,2.48866338,34722.0,34721.0,0.24057544]
[1625642718457,2.40206338,34722.0,34721.0,0.24057544]
[1625642718577,3.5584117,34722.0,34721.0,0.24057544]
[1625642719298,3.54594261,34722.0,34721.0,0.24057544]
[1625642719481,3.55841478,34722.0,34721.0,0.24057544]
[1625642719958,3.55841478,34722.0,34721.0,0.29757544]
[1625642720080,2.38959429,34722.0,34721.0,0.29757544]
[1625642720619,2.38959429,34722.0,34721.0,0.24057544]
[1625642721401,2.47569429,34722.0,34721.0,0.24057544]
[1625642721523,3.54694526,34722.0,34721.0,0.24057544]
[1625642721643,3.5594201,34722.0,34721.0,0.24057544]
[1625642721883,3.5594201,34722.0,34721.0,0.29757544]
[1625642722125,3.54694526,34722.0,34721.0,0.29757544]
[1625642722605,2.38959429,34722.0,34721.0,0.29757544]
[1625642722786,2.40206935,34722.0,34721.0,0.24057544]
[1625642722905,3.55910624,34722.0,34721.0,0.24057544]
[1625642723687,3.55910624,34722.0,34721.0,0.29757544]
[1625642723808,3.54663118,34722.0,34721.0,0.29757544]
[1625642724468,3.54663118,34722.0,34721.0,0.24057544]
[1625642725188,3.55910618,34722.0,34721.0,0.24057544]
[1625642725309,3.54663118,34722.0,34721.0,0.24057544]
[1625642725609,3.55910615,34722.0,34721.0,0.24057544]
[1625642725731,3.55910615,34722.0,34721.0,0.29757544]
[1625642725909,3.55910615,34722.0,34721.0,0.24057544]
[1625642726028,3.55910615,34722.0,34721.0,0.29757544]
[1625642727350,3.54663118,34722.0,34721.0,0.24057544]
[1625642727588,3.55911288,34722.0,34721.0,0.24057544]
[1625642728191,3.64551288,34722.0,34721.0,0.24057544]
[1625642728312,3.55911288,34722.0,34721.0,0.24057544]
[1625642729033,4.88468191,34722.0,34721.0,0.24057544]
[1625642729640,4.88468191,34722.0,34721.0,0.29757544]
[1625642731918,4.97148191,34722.0,34721.0,0.29757544]
[1625642732939,4.95900021,34722.0,34721.0,0.24057544]
[1625642733960,4.95900021,34722.0,34721.0,0.29757544]
[1625642735223,4.95900021,34722.0,34721.0,0.24057544]
[1625642736246,4.95900021,34722.0,34721.0,0.29757544]
[1625642736489,4.95900021,34722.0,34721.0,0.24057544]
[1625642737452,6.45373208,34722.0,34721.0,0.24057544]
[1625642738952,6.45373208,34722.0,34721.0,0.29757544]
[1625642739434,6.4662503,34722.0,34721.0,0.29757544]
[1625642742861,6.4662503,34722.0,34721.0,0.24057544]
[1625642743646,6.4662503,34722.0,34721.0,0.29757544]
[1625642743945,6.4662503,34722.0,34721.0,0.24057544]
[1625642744065,6.4662503,34722.0,34721.0,0.29757544]
[1625642744305,6.3794503,34722.0,34721.0,0.29757544]
[1625642744606,6.3794503,34722.0,34721.0,0.31097544]
[1625642745147,6.3794503,34722.0,34721.0,0.25397544]
[1625642745266,6.3794503,34722.0,34721.0,0.31097544]
[1625642745390,6.4651503,34722.0,34721.0,0.31097544]
[1625642745507,6.3794503,34722.0,34721.0,0.31097544]
[1625642747671,6.3794503,34722.0,34721.0,0.25397544]
[1625642747852,6.3794503,34722.0,34721.0,0.31097544]
[1625642747973,6.3794503,34722.0,34721.0,0.25397544]
[1625642749712,6.3794503,34722.0,34721.0,0.58952544]
[1625642749893,6.3794503,34722.0,34721.0,0.64652544]
[1625642752959,6.3794503,34722.0,34721.0,0.58952544]
[1625642753139,6.3794503,34722.0,34721.0,0.64652544]
[1625642754462,6.3794503,34722.0,34721.0,0.65133969]
[1625642754762,4.88471843,34722.0,34721.0,0.65133969]
[1625642756866,6.38065973,34722.0,34721.0,0.65133969]
[1625642757829,6.38065973,34722.0,34721.0,0.31578969]
[1625642760291,6.36814151,34722.0,34721.0,0.31097544]
[1625642761494,6.36814151,34722.0,34721.0,0.25397544]
[1625642762636,6.45454151,34722.0,34721.0,0.25397544]
[1625642763842,6.36814151,34722.0,34721.0,0.25397544]
[1625642766003,6.50198111,34722.0,34721.0,0.25397544]
[1625642766543,6.41468111,34722.0,34721.0,0.25397544]
[1625642767624,6.50048111,34722.0,34721.0,0.25397544]
[1625642767743,6.41468111,34722.0,34721.0,0.25397544]
[1625642768946,6.38064741,34722.0,34721.0,0.25397544]
[1625642770448,6.38064741,34722.0,34721.0,0.31097544]
[1625642772253,6.38064741,34722.0,34721.0,0.25397544]
[1625642773574,8.04472086,34722.0,34721.0,0.25397544]
[1625642773696,8.32995086,34722.0,34721.0,0.25397544]
[1625642775196,8.04472086,34722.0,34721.0,0.25397544]
[1625642775438,6.38064741,34722.0,34721.0,0.31097544]
[1625642775680,8.04721126,34722.0,34721.0,0.31097544]
[1625642778384,6.38064741,34722.0,34721.0,0.31097544]
[1625642778567,6.14007197,34722.0,34721.0,0.31097544]
[1625642778746,6.14007197,34722.0,34721.0,0.65097947]
[1625642778867,6.14007197,34722.0,34721.0,1.1609816]
[1625642779108,6.14007197,34722.0,34721.0,0.82097757]
[1625642779590,6.14007197,34722.0,34721.0,1.50089502]
[1625642780972,6.14007197,34722.0,34721.0,1.16094268]
[1625642781332,6.14007197,34722.0,34721.0,0.65094055]
[1625642781456,6.14007197,34722.0,34721.0,0.31097544]
[1625642781578,6.14007197,34722.0,34721.0,0.25397544]
[1625642782055,6.14007197,34722.0,34721.0,0.31097544]
[1625642784101,7.8067371,34722.0,34721.0,0.31097544]
[1625642784579,6.14007197,34722.0,34721.0,0.31097544]
[1625642784819,6.14007197,34722.0,34721.0,0.29757544]
[1625642785241,6.14007197,34722.0,34721.0,0.31097544]
[1625642787646,6.14007197,34722.0,34721.0,3.92597544]
[1625642788546,6.17410536,34722.0,34721.0,3.92597544]
[1625642788787,6.14007197,34722.0,34721.0,3.92597544]
[1625642789268,6.14007197,34722.0,34721.0,0.31097544]
[1625642789869,6.14007197,34722.0,34721.0,0.92782644]
[1625642790110,6.14007197,34722.0,34721.0,1.77771772]
[1625642790350,6.14007197,34722.0,34721.0,1.09780213]
[1625642790531,6.14007197,34722.0,34721.0,0.9278227]
[1625642791012,6.14007197,34722.0,34721.0,1.43775786]
[1625642791254,6.14007197,34722.0,34721.0,1.0978006]
[1625642791554,6.14007197,34722.0,34721.0,1.77766462]
[1625642795641,6.14007197,34722.0,34721.0,2.7972545]
[1625642796061,6.14007197,34722.0,34721.0,1.77766462]
[1625642797083,4.98284806,34722.0,34721.0,1.77766462]
[1625642797201,4.13947197,34722.0,34721.0,1.77766462]
[1625642797322,4.13947197,34722.0,34721.0,1.78247525]
[1625642797500,2.64353067,34722.0,34721.0,1.77766462]
[1625642798224,4.14504414,34722.0,34721.0,1.77766462]
[1625642798402,2.64353067,34722.0,34721.0,1.77766462]
[1625642798644,0.144637,34723.0,34721.0,1.7824752]
[1625642798946,0.002,34728.0,34721.0,0.59267602]
[1625642799065,0.002,34728.0,34726.0,4.1746]
[1625642799425,1.67274899,34733.0,34726.0,4.1746]
[1625642799668,0.003,34733.0,34729.0,0.3396202]
[1625642799905,0.01245384,34732.0,34729.0,0.6631602]
[1625642800270,0.01245384,34732.0,34730.0,0.3396117]
[1625642800625,0.01245384,34732.0,34729.0,0.32354]
[1625642800927,0.01245384,34732.0,34731.0,0.48115088]
[1625642801532,0.01245384,34732.0,34731.0,0.82074279]
[1625642802129,0.01245384,34732.0,34731.0,0.48115088]
[1625642802428,0.01245384,34732.0,34731.0,0.82053429]
[1625642803390,0.01245384,34732.0,34731.0,0.48115088]
[1625642803571,0.01245384,34732.0,34731.0,0.6507467]
[1625642804414,0.01245384,34732.0,34731.0,0.48115088]
[1625642811209,1.51160947,34732.0,34731.0,0.48115088]
[1625642813732,2.84438432,34732.0,34731.0,0.48115088]
[1625642816801,2.84438432,34732.0,34731.0,0.74252088]
[1625642817944,2.84438432,34732.0,34731.0,0.48115088]
[1625642819027,4.01071544,34732.0,34731.0,0.48115088]
[1625642821072,2.51155981,34732.0,34731.0,0.48115088]
[1625642821313,2.51155981,34732.0,34731.0,0.65054564]
[1625642821554,2.51155981,34732.0,34731.0,0.48115088]
[1625642823059,4.01059629,34732.0,34731.0,0.48115088]
[1625642824266,2.51155981,34732.0,34731.0,0.48115088]
[1625642824745,4.01084703,34732.0,34731.0,0.48115088]
[1625642826188,4.044872,34732.0,34731.0,0.48115088]
[1625642828896,5.04421554,34732.0,34731.0,0.48115088]
[1625642830880,5.01019057,34732.0,34731.0,0.48115088]
[1625642831661,5.04421335,34732.0,34731.0,0.48115088]
[1625642832504,5.01019057,34732.0,34731.0,0.48115088]
[1625642834726,5.04421364,34732.0,34731.0,0.48115088]
[1625642835268,5.01019057,34732.0,34731.0,0.48115088]
[1625642836353,5.04421401,34732.0,34731.0,0.48115088]
[1625642836835,5.01019057,34732.0,34731.0,0.48115088]
[1625642837075,5.044214,34732.0,34731.0,0.48115088]
[1625642837436,5.01019057,34732.0,34731.0,0.48115088]
[1625642837916,5.04421421,34732.0,34731.0,0.48115088]
[1625642839239,5.04421421,34732.0,34728.0,0.25425842]
[1625642839479,3.50101075,34729.0,34728.0,0.25425842]
[1625642839840,3.5135344,34729.0,34728.0,1.21656018]
[1625642841588,3.5135344,34729.0,34728.0,1.56049507]
[1625642842429,3.5135344,34729.0,34728.0,1.47573463]
[1625642843152,3.5135344,34729.0,34728.0,1.30623665]
[1625642843392,3.5135344,34729.0,34728.0,0.96711665]
[1625642843574,3.5135344,34729.0,34728.0,1.30626805]
[1625642845076,3.5135344,34729.0,34728.0,1.58691805]
[1625642845195,3.5135344,34729.0,34728.0,1.24776665]
[1625642845436,3.5135344,34729.0,34728.0,1.58699931]
[1625642845675,3.5135344,34729.0,34728.0,1.24776665]
[1625642845857,3.5135344,34729.0,34728.0,1.58699786]
[1625642846338,3.5135344,34729.0,34728.0,1.24776665]
[1625642846458,3.5135344,34729.0,34728.0,0.96711665]
[1625642846578,3.5135344,34729.0,34728.0,1.30634763]
[1625642847599,3.5135344,34729.0,34728.0,0.96711665]
[1625642851207,5.01563606,34729.0,34728.0,0.96711665]
[1625642852889,5.34535248,34729.0,34728.0,1.21698924]
[1625642853072,5.34535248,34729.0,34728.0,0.96230176]
[1625642853191,5.43235248,34729.0,34728.0,0.96230176]
[1625642853430,5.34535248,34729.0,34728.0,0.96230176]
[1625642854813,5.04966248,34729.0,34728.0,0.96230176]
[1625642857281,7.38616613,34729.0,34728.0,0.96230176]
[1625642857522,5.71730647,34729.0,34728.0,0.96230176]
[1625642859327,7.39018927,34729.0,34728.0,0.96230176]
[1625642861669,5.68328005,34729.0,34728.0,0.96230176]
[1625642862208,5.68328005,34729.0,34728.0,1.04723075]
[1625642862385,5.68328005,34729.0,34728.0,1.55679533]
[1625642863769,5.68328005,34729.0,34728.0,1.04723075]
[1625642864252,5.68328005,34729.0,34728.0,0.96230176]
[1625642865154,5.71730724,34729.0,34728.0,0.96230176]
[1625642865274,7.39950285,34729.0,34728.0,0.96230176]
[1625642867617,7.36547566,34729.0,34728.0,0.96230176]
[1625642867919,5.68328005,34729.0,34728.0,0.96230176]
[1625642868819,5.7173069,34729.0,34728.0,0.96230176]
[1625642869060,7.3982791,34729.0,34728.0,0.96230176]
[1625642869603,5.7173069,34729.0,34728.0,0.96230176]
[1625642869781,7.39832937,34729.0,34728.0,0.96230176]
[1625642870022,5.7173069,34729.0,34728.0,0.96230176]
[1625642870801,5.68328005,34729.0,34728.0,0.96230176]
[1625642871221,5.68328005,34729.0,34728.0,1.04722407]
[1625642872186,5.68328005,34729.0,34728.0,1.47181165]
[1625642873265,5.68328005,34729.0,34728.0,1.55673032]
[1625642873566,5.68328005,34729.0,34728.0,1.04722043]
[1625642874646,5.68328005,34729.0,34728.0,0.96230176]
[1625642876933,6.03871736,34729.0,34728.0,0.96230176]
[1625642879580,5.71730736,34729.0,34728.0,0.96230176]
[1625642880541,5.71730736,34729.0,34728.0,1.04722027]
[1625642881264,5.71730736,34729.0,34728.0,0.96230176]
[1625642881685,5.71730736,34729.0,34728.0,1.04721913]
[1625642883248,5.68328005,34729.0,34728.0,1.04721913]
[1625642883367,5.68328005,34729.0,34728.0,0.96230176]
[1625642883547,5.68328005,34729.0,34728.0,1.64649428]
[1625642885408,5.68328005,34729.0,34728.0,1.64168072]
[1625642886189,5.68328005,34729.0,34728.0,0.96230176]
[1625642886369,5.68328005,34729.0,34728.0,1.30200897]
[1625642886608,5.68328005,34729.0,34728.0,1.47186469]
[1625642886729,5.7173065,34729.0,34728.0,1.47186469]
[1625642886850,5.7173065,34729.0,34728.0,1.21708657]
[1625642887149,5.7173065,34729.0,34728.0,1.04723085]
[1625642887569,6.2210511,34729.0,34728.0,1.04723085]
[1625642888471,6.2210511,34729.0,34728.0,1.55679377]
[1625642888590,6.18702465,34729.0,34728.0,1.55679377]
[1625642889191,6.18702465,34729.0,34728.0,1.47186468]
[1625642889731,6.22105022,34729.0,34728.0,1.47186468]
[1625642889852,6.22105022,34729.0,34728.0,1.30201037]
[1625642890097,6.22105022,34729.0,34728.0,2.15147648]
[1625642890575,6.22105022,34729.0,34728.0,1.47194807]
[1625642891055,6.22105022,34729.0,34728.0,1.811716]
[1625642891538,6.22105022,34729.0,34728.0,1.47194807]
[1625642891777,6.22105022,34729.0,34728.0,1.81172514]
[1625642894781,6.22105022,34729.0,34728.0,1.47194807]
[1625642896403,6.22105022,34729.0,34728.0,1.81175059]
[1625642896524,6.22105022,34729.0,34728.0,1.89805059]
[1625642896659,5.00405022,34729.0,34728.0,2.50221803]
[1625642896823,5.00405022,34729.0,34728.0,2.50695625]
[1625642896824,2.67349025,34729.0,34728.0,2.50695625]
[1625642897006,0.90867159,34735.0,34728.0,5.64489263]
[1625642897125,1.51890599,34740.0,34733.0,1.52876918]
[1625642897246,1.01840599,34740.0,34734.0,0.5]
[1625642897365,1.68432128,34746.0,34734.0,0.5]
[1625642897486,1.6877931,34754.0,34737.0,0.5]
[1625642897725,0.057,34765.0,34736.0,1.94420778]
[1625642897726,0.20257074,34761.0,34740.0,0.43569722]
[1625642897845,0.20281297,34766.0,34760.0,3.6587]
[1625642898028,0.20281297,34766.0,34760.0,3.99051]
[1625642898146,0.04667877,34765.0,34760.0,4.58474968]
[1625642898445,0.01267086,34766.0,34764.0,0.96230176]
[1625642898746,0.28326232,34775.0,34764.0,0.96230176]
[1625642898747,0.0126698,34772.0,34764.0,0.96230176]
[1625642899045,0.01266942,34765.0,34764.0,1.28720236]
[1625642899165,0.08,34775.0,34770.0,0.15988978]
[1625642899285,0.08,34775.0,34770.0,0.40002978]
[1625642899467,0.01263573,34774.0,34770.0,0.40002978]
[1625642899708,0.137,34775.0,34770.0,0.40002978]
[1625642899829,5.1424,34775.0,34770.0,0.40002978]
[1625642900430,5.1424,34775.0,34774.0,0.72172632]
[1625642900671,0.08,34775.0,34774.0,0.72172632]
[1625642904099,0.08,34775.0,34774.0,0.79312632]
[1625642905002,0.057,34778.0,34774.0,0.79312632]
[1625642905118,5.55707544,34782.0,34776.0,4.2782]
[1625642905238,5.61407544,34782.0,34776.0,4.2782]
[1625642905360,5.61407544,34782.0,34776.0,4.1982]
[1625642906320,0.001,34778.0,34776.0,4.1982]
[1625642906440,0.001,34778.0,34777.0,0.24057544]
[1625642906562,0.001,34778.0,34777.0,0.54343544]
[1625642915458,4.0389,34781.0,34777.0,0.54343544]
[1625642916122,4.0389,34781.0,34777.0,0.24057544]
[1625642916603,4.0389,34781.0,34780.0,0.24057544]
[1625642923703,4.05151872,34781.0,34780.0,0.24057544]
[1625642925684,4.08551002,34781.0,34780.0,0.24057544]
[1625642927307,4.08451002,34781.0,34780.0,0.24057544]
[1625642927907,0.04661002,34781.0,34780.0,0.24057544]
[1625642928032,0.04661002,34781.0,34780.0,0.46113544]
[1625642928689,0.0861,34781.0,34780.0,0.70171088]
[1625642928928,0.13270322,34781.0,34780.0,0.70171088]
[1625642929652,0.13270322,34781.0,34780.0,0.78911088]
[1625642929769,0.13270322,34781.0,34780.0,0.70171088]
[1625642930971,0.04660322,34781.0,34780.0,0.70171088]
[1625642931393,0.0466132,34783.0,34780.0,0.70171088]
[1625642931992,0.0874,34782.0,34780.0,0.70171088]
[1625642932232,0.0466132,34783.0,34780.0,0.70171088]
[1625642932353,0.0466132,34783.0,34780.0,0.48115088]
[1625642932472,0.001,34784.0,34780.0,0.48115088]
[1625642932473,0.04661795,34781.0,34780.0,0.48115088]
[1625642932775,0.0466187,34782.0,34780.0,0.48115088]
[1625642933012,0.0466199,34781.0,34780.0,0.48115088]
[1625642933254,0.04662031,34783.0,34780.0,0.48115088]
[1625642933372,0.0864,34782.0,34780.0,0.48115088]
[1625642933977,0.04662031,34781.0,34780.0,0.48115088]
[1625642934097,0.04662031,34781.0,34777.0,0.24157544]
[1625642934697,5.53035088,34778.0,34777.0,0.24157544]
[1625642934996,5.57697358,34778.0,34777.0,0.24157544]
[1625642936505,5.33639814,34778.0,34777.0,0.24157544]
[1625642940588,5.33639814,34778.0,34777.0,0.48876544]
[1625642943176,0.28719814,34778.0,34777.0,0.48876544]
[1625642943296,0.0466227,34778.0,34777.0,0.48876544]
[1625642943658,0.04661428,34783.0,34777.0,0.48876544]
[1625642944739,0.04661428,34783.0,34782.0,0.48115088]
[1625642945999,0.13171428,34783.0,34782.0,0.48115088]
[1625642946126,0.04661428,34783.0,34782.0,0.48115088]
[1625642947804,0.04661428,34783.0,34782.0,0.62395088]
[1625642952074,1.55923532,34783.0,34782.0,0.62395088]
[1625642956274,1.62721225,34783.0,34782.0,0.62395088]
[1625642956456,3.55478704,34783.0,34782.0,0.62395088]
[1625642956575,3.55478704,34783.0,34782.0,0.1428]
[1625642956695,8.03047623,34783.0,34782.0,0.1428]
[1625642957416,7.9624993,34783.0,34782.0,0.1428]
[1625642958920,3.64348502,34783.0,34782.0,0.1428]
[1625642959164,3.69009559,34783.0,34782.0,0.1428]
[1625642959827,8.28299559,34783.0,34782.0,0.1428]
[1625642960728,8.35097118,34783.0,34782.0,0.1428]
[1625642962169,3.69009559,34783.0,34782.0,0.1428]
[1625642963670,3.4868064,34783.0,34782.0,0.1428]
[1625642967637,3.55478038,34783.0,34782.0,0.1428]
[1625642967757,3.75822551,34783.0,34782.0,0.1428]
[1625642979054,3.84522551,34783.0,34782.0,0.1428]
[1625642979173,3.75822551,34783.0,34782.0,0.1428]
[1625642986934,3.75822551,34783.0,34782.0,0.38337544]
[1625642991205,3.51765551,34783.0,34782.0,0.61557544]
[1625642994450,3.51765551,34783.0,34782.0,0.38337544]
[1625643000346,3.60315551,34783.0,34782.0,0.1428]
[1625643000526,3.51765551,34783.0,34782.0,0.1428]
[1625643000707,3.51765551,34783.0,34779.0,0.0001]
[1625643000949,3.42974471,34780.0,34774.0,0.002]
[1625643001066,3.72732015,34780.0,34774.0,0.002]
[1625643001310,3.22603475,34775.0,34774.0,0.002]
[1625643001847,3.27264474,34775.0,34774.0,0.002]
[1625643003108,3.51322018,34775.0,34774.0,0.002]
[1625643006356,3.51322018,34775.0,34774.0,0.25632781]
[1625643006596,3.51322018,34775.0,34774.0,0.49592781]
[1625643006717,3.27264474,34775.0,34774.0,0.49592781]
[1625643006838,1.57474065,34775.0,34774.0,2.44339634]
[1625643007079,1.54074845,34775.0,34774.0,4.10934627]
[1625643007316,0.01261779,34775.0,34774.0,4.10934627]
[1625643007616,0.01261779,34775.0,34774.0,4.11413351]
[1625643008340,0.01261779,34775.0,34774.0,4.11213351]
[1625643008581,1.779e-05,34775.0,34774.0,4.11213351]
[1625643008759,1.779e-05,34775.0,34774.0,4.10734627]
[1625643012788,1.52725643,34775.0,34774.0,2.92254722]
[1625643017182,1.779e-05,34775.0,34774.0,2.92254722]
[1625643017723,1.52701799,34775.0,34774.0,2.92254722]
[1625643020243,1.779e-05,34775.0,34774.0,2.92254722]
[1625643020363,1.779e-05,34775.0,34774.0,4.10796587]
[1625643021026,1.779e-05,34775.0,34774.0,2.92254722]
[1625643021988,1.779e-05,34775.0,34774.0,4.10780514]
[1625643022230,0.01260853,34776.0,34774.0,4.10780514]
[1625643022408,0.01260853,34776.0,34775.0,1.6930057]
[1625643022528,0.01260853,34776.0,34775.0,3.3860114]
[1625643023071,0.01260853,34777.0,34775.0,3.3860114]
[1625643023189,1.53921839,34777.0,34776.0,2.20074575]
[1625643025597,0.01260853,34777.0,34776.0,2.20074575]
[1625643025835,1.53908483,34777.0,34776.0,2.20074575]
[1625643026075,0.01260853,34777.0,34776.0,2.20074575]
[1625643029325,1.52646381,34778.0,34776.0,2.20074575]
[1625643029564,0.01260852,34777.0,34776.0,2.20074575]
[1625643029683,0.01260852,34777.0,34776.0,1.01572881]
[1625643029864,0.01260852,34777.0,34776.0,2.20133778]
[1625643030945,1.5261404,34779.0,34776.0,2.20133778]
[1625643030946,0.01256726,34778.0,34776.0,2.20133778]
[1625643031189,0.01256728,34777.0,34776.0,2.20133778]
[1625643031307,0.01256728,34777.0,34775.0,5.8330417]
[1625643031428,0.01256731,34778.0,34775.0,5.8330417]
[1625643031547,0.01256731,34778.0,34776.0,2.20140299]
[1625643031729,0.01256731,34778.0,34777.0,1.1853625]
[1625643031969,0.01256731,34778.0,34777.0,2.20136963]
[1625643032452,1.53868777,34778.0,34777.0,2.20136963]
[1625643033114,0.01256731,34778.0,34777.0,2.20136963]
[1625643034136,0.01256731,34778.0,34775.0,4.6475]
[1625643034377,0.01256731,34778.0,34777.0,2.20129269]
[1625643043996,0.0125676,34779.0,34777.0,2.20129269]
[1625643044117,0.0125676,34779.0,34778.0,2.20168531]
[1625643044357,1.76629781,34780.0,34778.0,2.20168531]
[1625643044540,0.01256762,34779.0,34778.0,2.20168531]
[1625643044656,0.01256762,34779.0,34778.0,1.01616245]
[1625643045256,0.01256762,34779.0,34778.0,2.20172632]
[1625643045375,0.01256762,34779.0,34778.0,2.44230176]
[1625643046281,0.01256762,34779.0,34778.0,0.24057544]
[1625643046461,0.01256762,34779.0,34778.0,2.4428421]
[1625643047362,1.52659127,34781.0,34778.0,2.4428421]
[1625643047606,0.001,34781.0,34780.0,3.3835002]
[1625643047846,0.001,34781.0,34780.0,4.73634644]
[1625643047962,0.01353323,34781.0,34780.0,4.74116838]
[1625643048203,0.001,34781.0,34780.0,4.74116838]